bitfinex/quotes_SOLUSD_20260102
["timestamp","ask_amount","ask_price","bid_price","bid_amount"]
[1767319733701,7.93739358,125.99,125.96,60.44680607]
[1767319733878,2.09510205,125.97,125.96,60.44680607]
[1767319735295,2.09510205,125.97,125.94,0.91674037]
[1767319735676,7.93739358,125.99,125.94,0.91674037]
[1767319736000,2.09510205,125.97,125.94,0.91674037]
[1767319736703,2.09510205,125.98,125.94,0.91674037]
[1767319737378,2.09510205,125.97,125.94,0.2]
[1767319738074,2.09510205,125.97,125.94,0.91674037]
[1767319738380,2.09510205,125.98,125.95,0.71674037]
[1767319738675,7.93739358,125.99,125.95,0.71674037]
[1767319738891,2.09510205,125.98,125.95,0.71674037]
[1767319744498,7.93739358,125.99,125.95,0.71674037]
[1767319744701,2.09510205,125.98,125.95,0.71674037]
[1767319745408,10.03249563,125.99,125.95,0.71674037]
[1767319750907,2.09510205,125.98,125.95,0.71674037]
[1767319751807,7.93650793,126.0,125.95,0.71674037]
[1767319752019,2.09510205,125.98,125.95,0.71674037]
[1767319753216,7.93650793,126.0,125.95,0.71674037]
[1767319753217,2.09510205,125.99,125.95,0.71674037]
[1767319753408,2.09510205,126.0,125.96,0.71674037]
[1767319753735,5.31511252,125.99,125.97,0.71674037]
[1767319754013,2.09510205,126.01,125.97,0.71674037]
[1767319754203,11.22164096,126.0,125.97,0.71674037]
[1767319754403,2.09510205,126.01,125.97,0.71674037]
[1767319754603,11.22196697,126.0,125.97,0.71674037]
[1767319754802,2.09510205,126.01,125.97,0.71674037]
[1767319754993,11.22196953,126.0,125.97,0.71674037]
[1767319755194,2.09510205,126.01,125.97,0.71674037]
[1767319755410,11.22232417,126.0,125.97,0.71674037]
[1767319755612,2.09510205,126.01,125.97,0.71674037]
[1767319755903,11.22232281,126.0,125.97,0.71674037]
[1767319756102,2.09510205,126.01,125.97,0.71674037]
[1767319756302,11.22270424,126.0,125.97,0.71674037]
[1767319756506,2.09510205,126.01,125.97,0.71674037]
[1767319756722,11.22482555,126.0,125.97,0.71674037]
[1767319757012,2.09510205,126.01,125.97,0.71674037]
[1767319757310,11.22450316,126.0,125.97,0.71674037]
[1767319757510,2.09510205,126.01,125.97,0.71674037]
[1767319757714,11.22253562,126.0,125.97,0.71674037]
[1767319758011,2.09510205,126.01,125.97,0.71674037]
[1767319758206,11.22253562,126.0,125.97,0.71674037]
[1767319758411,2.09510205,126.01,125.97,0.71674037]
[1767319758624,11.22227283,126.0,125.97,0.71674037]
[1767319758808,2.09510205,126.01,125.97,0.71674037]
[1767319759011,11.22228328,126.0,125.97,0.71674037]
[1767319759208,2.09510205,126.0,125.97,0.71674037]
[1767319760426,112.7353351,126.02,125.97,0.71674037]
[1767319760628,2.09510205,126.0,125.97,0.71674037]
[1767319761003,112.7353351,126.02,125.97,0.71674037]
[1767319761221,2.09510205,126.0,125.97,0.71674037]
[1767319762249,112.7353351,126.02,125.97,0.71674037]
[1767319762422,2.09510205,126.0,125.97,0.71674037]
[1767319762621,2.09510205,126.01,125.97,0.71674037]
[1767319762932,11.21874922,126.0,125.97,0.71674037]
[1767319763134,2.09510205,126.01,125.97,0.71674037]
[1767319763318,11.21834363,126.0,125.97,0.71674037]
[1767319763517,2.09510205,126.01,125.97,0.71674037]
[1767319763723,11.21789723,126.0,125.97,0.71674037]
[1767319763927,2.09510205,126.01,125.97,0.71674037]
[1767319764121,11.21789845,126.0,125.97,0.71674037]
[1767319764337,2.09510205,126.01,125.97,0.71674037]
[1767319764628,5.31345462,126.0,125.98,0.65546548]
[1767319764813,106.89510205,126.02,125.98,0.65546548]
[1767319765024,5.31399599,126.01,125.98,0.65546548]
[1767319765827,5.31399599,126.01,125.98,2.09510205]
[1767319766136,5.31399599,126.01,125.99,0.65546548]
[1767319766428,2.09510205,126.03,125.99,7.93703841]
[1767319766606,2.76897372,126.03,125.99,7.93703841]
[1767319766809,2.09510205,126.03,125.99,7.93703841]
[1767319767009,0.67387167,126.02,125.99,7.93703841]
[1767319770634,0.67387167,126.02,125.99,2.09510205]
[1767319770814,0.67387167,126.02,125.98,16.59510205]
[1767319771633,0.67387167,126.02,125.99,7.93713786]
[1767319772832,2.09510205,126.03,125.99,7.93713786]
[1767319773133,2.76897372,126.04,125.99,10.03223991]
[1767319773817,0.67387167,126.04,126.0,2.09510205]
[1767319775037,0.67387167,126.04,126.0,10.03138445]
[1767319775843,2.76897372,126.05,126.0,10.03138445]
[1767319776234,0.67387167,126.04,126.0,10.03138445]
[1767319782556,0.67387167,126.04,126.0,11.20602918]
[1767319798163,0.67387167,126.04,126.0,7.9362824]
[1767319798465,0.67387167,126.04,126.0,11.20602918]
[1767319812468,0.67387167,126.04,126.0,3.26974678]
[1767319814184,0.67387167,126.04,126.0,11.20583136]
[1767319821598,0.65632941,126.07,126.0,11.20583136]
[1767319821767,0.65632941,126.07,126.03,3.26974678]
[1767319822097,0.65632941,126.07,126.04,3.26974678]
[1767319822386,0.65632941,126.07,126.03,3.26974678]
[1767319823791,0.65632941,126.07,126.02,25.70441119]
[1767319823792,0.68992659,126.06,126.02,25.70441119]
[1767319825692,0.68992659,126.06,126.03,3.26974678]
[1767319826993,0.68992659,126.06,126.02,22.43466441]
[1767319827195,0.68992659,126.06,126.03,3.26974678]
[1767319828477,0.68992659,126.06,126.04,3.26974678]
[1767319835303,0.65736673,126.08,126.04,11.20368139]
[1767319835497,0.65736673,126.08,126.05,3.26974678]
[1767319836099,0.65736673,126.08,126.04,11.20368139]
[1767319836400,0.65736673,126.07,126.03,25.70413082]
[1767319839191,3.92711351,126.08,126.03,25.70413082]
[1767319839382,0.65736673,126.07,126.03,25.70413082]
[1767319839583,0.65736673,126.07,126.04,3.26974678]
[1767319842513,0.65736673,126.07,126.04,2.09139774]
[1767319843015,0.65736673,126.07,126.03,16.59139774]
[1767319843210,0.65736673,126.06,126.03,14.5]
[1767319844119,0.65736673,126.05,126.02,16.59139774]
[1767319844293,0.65736673,126.05,126.01,10.02700003]
[1767319844494,0.65736673,126.05,126.01,24.52700003]
[1767319850802,0.65736673,126.05,126.02,2.09139774]
[1767319851293,0.65736673,126.06,126.02,2.09139774]
[1767319851493,0.65736673,126.06,126.02,10.02637884]
[1767319852017,0.65736673,126.06,126.02,29.86449977]
[1767319852347,0.65736673,126.08,126.04,2.09139774]
[1767319853096,0.65736673,126.08,126.03,14.5]
[1767319853305,0.65736673,126.07,126.04,7.93379641]
[1767319854118,0.68265679,126.05,126.01,2.09139774]
[1767319854321,0.68265679,126.05,126.01,24.52700299]
[1767319855596,0.68265679,126.05,126.01,22.43560525]
[1767319856523,0.68265679,126.05,126.01,24.52700299]
[1767319860929,0.68265679,126.05,126.02,2.09139774]
[1767319861425,0.68265679,126.07,126.02,2.09139774]
[1767319862125,0.68265679,126.07,126.04,2.09139774]
[1767319863216,0.68265679,126.07,126.04,7.93379977]
[1767319864315,0.68265679,126.07,126.04,10.02519751]
[1767319864929,0.68265679,126.07,126.03,2.09139774]
[1767319875539,0.68265679,126.07,126.04,7.9339892]
[1767319879042,0.68265679,126.07,126.03,10.02573774]
[1767319879243,0.68265679,126.06,126.02,10.02627491]
[1767319883549,0.68265679,126.06,126.01,7.93560097]
[1767319883728,0.67810328,126.05,126.01,14.5]
[1767319884545,0.67810328,126.05,126.0,21.93177199]
[1767319884848,0.67810328,126.05,126.01,14.5]
[1767319885147,0.67810328,126.05,126.02,7.93524452]
[1767319893059,0.67810328,126.05,126.01,14.5]
[1767319894156,0.67810328,126.05,126.01,22.43566405]
[1767319894457,0.67449145,126.04,126.01,14.5]
[1767319897969,0.67449145,126.03,126.01,14.5]
[1767319898742,0.67449145,126.03,125.99,22.43704571]
[1767319902664,0.67449145,126.03,125.99,24.52844345]
[1767319904068,0.67449145,126.03,126.0,2.09139774]
[1767319904555,0.67449145,126.03,126.0,3.26947668]
[1767319905154,0.67449145,126.03,126.0,11.20584858]
[1767319905355,0.67449145,126.03,126.0,7.9363719]
[1767319905666,0.67449145,126.03,125.99,25.70634073]
[1767319905861,0.67449145,126.03,125.99,22.43686405]
[1767319907167,3.26947668,126.03,125.99,22.43686405]
[1767319907473,0.67449145,126.01,125.98,22.43749554]
[1767319908547,3.26947668,126.03,125.98,25.70697222]
[1767319908764,0.67449145,126.02,125.98,25.70697222]
[1767319908954,3.26947668,126.04,125.99,3.26947668]
[1767319909158,0.67449145,126.03,126.0,3.26947668]
[1767319909479,0.67449145,126.03,125.99,3.26947668]
[1767319909785,0.67449145,126.03,125.98,25.70697222]
[1767319910082,0.67449145,126.03,125.98,45.55139196]
[1767319914374,0.67449145,126.03,125.99,11.20627563]
[1767319914574,0.67449145,126.03,126.0,3.26947668]
[1767319915174,0.67449145,126.03,125.99,11.20627563]
[1767319928482,0.67449145,126.03,125.99,7.93679895]
[1767319928682,0.67449145,126.03,125.99,11.20627563]
[1767319929980,0.67449145,126.03,126.0,3.26947668]
[1767319930178,0.67449145,126.03,125.99,31.0491203]
[1767319932091,0.67449145,126.03,125.99,27.77964362]
[1767319932463,0.67449145,126.03,125.99,7.93679895]
[1767319934485,0.67449145,126.03,125.98,25.70711923]
[1767319934787,0.66943309,126.02,125.98,22.43764255]
[1767319935489,0.66943309,126.02,125.98,7.93764255]
[1767319935790,0.66943309,126.02,125.98,22.43764255]
[1767319936089,0.66943309,126.02,125.98,25.70711923]
[1767319949918,0.66943309,126.02,125.98,22.43764255]
[1767319950100,0.66943309,126.02,125.98,25.70711923]
[1767319951107,0.66943309,126.02,125.98,22.43764255]
[1767319951310,0.66943309,126.02,125.98,25.70711923]
[1767319954007,0.66943309,126.02,125.98,22.43764255]
[1767319960517,0.66943309,126.02,125.98,25.70711923]
[1767319961715,0.66943309,126.02,125.98,22.43764255]
[1767319961908,0.66943309,126.02,125.98,25.70711923]
[1767319963716,0.66943309,126.02,125.98,22.43764255]
[1767319963921,0.66943309,126.02,125.98,25.70711923]
[1767319965422,0.66943309,126.02,125.98,22.43764255]
[1767319971829,0.70908852,126.01,125.98,22.43764255]
[1767319973530,0.66940913,126.01,125.98,22.43764255]
[1767319979743,0.62972974,126.01,125.98,22.43764255]
[1767319980828,0.62972974,126.01,125.98,22.51700133]
[1767319983632,0.62972974,126.01,125.99,0.07935878]
[1767319984116,2.09332077,126.03,125.99,0.07935878]
[1767319984322,0.70330647,126.02,125.99,0.07935878]
[1767319985540,0.70330647,126.02,125.98,24.6103221]
[1767319986538,0.70330647,126.02,125.98,24.53096332]
[1767319986721,0.70330647,126.02,125.98,24.6103221]
[1767319988840,0.70330647,126.02,125.99,0.07935878]
[1767319989040,2.79662724,126.05,126.0,0.07935878]
[1767319989232,0.70330647,126.03,126.0,0.07935878]
[1767319989426,2.09332077,126.05,126.0,2.09332077]
[1767319989621,11.96274682,126.04,126.01,2.17267955]
[1767319989949,0.70330647,126.04,126.01,2.17267955]
[1767319990445,0.70330647,126.04,126.01,10.10850472]
[1767319991539,0.70330647,126.04,126.01,8.01518395]
[1767319991754,0.70330647,126.04,126.01,10.10850472]
[1767319994540,0.70330647,126.06,126.02,2.17267955]
[1767319994735,0.70330647,126.06,126.03,0.07935878]
[1767319995242,0.70330647,126.06,126.02,2.09332077]
[1767319995741,0.70330647,126.06,126.01,42.35487921]
[1767319995944,0.70330647,126.06,126.01,44.44819998]
[1767319996147,0.70330647,126.05,126.01,44.44819998]
[1767320009046,0.70330647,126.05,126.01,44.3688412]
[1767320009252,0.70330647,126.05,126.02,0.07935878]
[1767320009554,0.70330647,126.05,126.02,10.10741692]
[1767320015761,0.70330647,126.05,126.02,10.02805814]
[1767320023163,0.70330647,126.05,126.02,10.10741692]
[1767320027273,0.7128467,126.07,126.03,0.07935878]
[1767320034278,0.65429349,126.05,126.02,8.01409615]
[1767320035161,0.65429349,126.05,126.02,11.28250093]
[1767320036279,0.65429349,126.05,126.02,8.01409615]
[1767320036478,0.65429349,126.05,126.02,11.28250093]
[1767320039880,0.65429349,126.05,126.02,8.01409615]
[1767320040065,0.65429349,126.05,126.02,11.28250093]
[1767320045377,0.65429349,126.04,126.0,7.93608706]
[1767320045559,0.65429349,126.04,126.0,8.01544584]
[1767320045994,0.65429349,126.04,126.01,7.93585601]
[1767320052504,0.65429349,126.04,126.0,8.01586671]
[1767320053573,0.65429349,126.04,126.0,11.28427149]
[1767320059096,0.65429349,126.04,126.01,0.07935878]
[1767320060195,0.65429349,126.04,126.01,3.34776356]
[1767320062072,0.65429349,126.04,126.02,7.93524837]
[1767320066801,0.65429349,126.04,126.01,0.07935878]
[1767320067098,0.65429349,126.04,126.01,3.34776356]
[1767320067302,0.65429349,126.04,126.01,0.07935878]
[1767320068993,0.65429349,126.04,126.02,7.93524837]
[1767320071602,0.65429349,126.04,126.01,11.28364166]
[1767320073703,0.65429349,126.04,126.01,0.07935878]
[1767320077204,0.68974194,126.08,126.03,0.07935878]
[1767320077375,0.68974194,126.06,126.03,3.34776356]
[1767320077579,0.68974194,126.06,126.03,17.84776356]
[1767320078189,0.68974194,126.07,126.04,0.07935878]
[1767320078491,0.68974194,126.07,126.03,17.76840478]
[1767320078701,0.68974194,126.07,126.03,17.84776356]
[1767320080501,0.68974194,126.07,126.04,7.9339892]
[1767320083009,0.68974194,126.07,126.04,8.01334798]
[1767320083503,0.68974194,126.07,126.04,11.28175276]
[1767320090515,0.68974194,126.07,126.04,10.10466049]
[1767320092215,0.68974194,126.07,126.04,10.02530171]
[1767320092412,0.68974194,126.07,126.03,24.60506363]
[1767320097827,0.68974194,126.07,126.03,32.53591514]
[1767320101227,0.68974194,126.07,126.04,10.10451485]
[1767320101611,0.68974194,126.07,126.04,24.60451485]
[1767320101914,0.68974194,126.07,126.04,47.03536636]
[1767320104522,0.68974194,126.07,126.05,2.09131251]
[1767320104830,0.68974194,126.07,126.04,47.03536636]
[1767320105222,0.68974194,126.07,126.05,2.09131251]
[1767320106230,0.68974194,126.07,126.04,47.03536636]
[1767320107032,0.68974194,126.07,126.04,44.86469507]
[1767320107332,0.68974194,126.07,126.04,22.43384356]
[1767320111117,0.68974194,126.07,126.04,24.52515607]
[1767320111513,0.68974194,126.07,126.04,32.534933]
[1767320113532,0.68974194,126.07,126.04,32.45557422]
[1767320114138,0.68974194,126.07,126.04,32.534933]
[1767320115074,0.68974194,126.07,126.04,24.60451485]
[1767320116038,0.68974194,126.07,126.04,30.44362049]
[1767320116842,0.68974194,126.07,126.04,22.51320234]
[1767320120054,0.68974194,126.07,126.04,24.60451485]
[1767320120923,0.68974194,126.07,126.04,32.534933]
[1767320121124,0.68974194,126.07,126.04,24.60451485]
[1767320121945,0.68974194,126.07,126.04,32.534933]
[1767320122331,0.68974194,126.07,126.04,30.44362049]
[1767320122921,0.68974194,126.07,126.04,32.534933]
[1767320123840,0.68974194,126.07,126.05,0.07935878]
[1767320124745,0.68974194,126.07,126.04,32.534933]
[1767320128250,2.09131251,126.09,126.04,32.534933]
[1767320128450,0.69969546,126.07,126.04,32.534933]
[1767320135662,0.69969546,126.08,126.05,2.17067129]
[1767320136564,0.69969546,126.08,126.05,8.02985291]
[1767320138249,0.69969546,126.08,126.05,7.93302578]
[1767320138448,0.69969546,126.08,126.05,15.96287869]
[1767320141361,0.69969546,126.08,126.05,18.0541912]
[1767320147568,0.69969546,126.08,126.05,18.13354998]
[1767320152459,0.69969546,126.08,126.05,19.30915797]
[1767320154285,0.69969546,126.08,126.05,16.04223747]
[1767320154580,0.69969546,126.08,126.05,19.30915797]
[1767320157687,0.69969546,126.08,126.05,16.04223747]
[1767320157985,0.69969546,126.08,126.05,11.27930506]
[1767320159988,0.69969546,126.08,126.04,14.5]
[1767320160168,0.6623597,126.06,126.03,7.93426185]
[1767320163588,3.9292802,126.06,126.03,7.93426185]
[1767320163791,0.6623597,126.05,126.03,7.93426185]
[1767320164098,3.2669205,126.05,126.0,23.22655584]
[1767320164283,3.2669205,126.05,126.01,7.93539607]
[1767320166079,0.6623597,126.04,126.01,7.93539607]
[1767320167299,0.6623597,126.03,126.01,7.93539607]
[1767320167474,0.62268661,126.03,126.01,7.93539607]
[1767320178397,3.2669205,126.03,125.99,0.15869866]
[1767320178604,0.6623597,126.02,125.99,8.09548445]
[1767320180797,3.2669205,126.01,125.98,22.4377124]
[1767320180996,0.6623597,126.02,125.98,25.7046329]
[1767320181215,0.6623597,126.02,125.99,0.15869866]
[1767320182301,0.6623597,126.02,125.99,3.42561916]
[1767320182803,0.6623597,126.02,125.99,11.36275043]
[1767320183801,0.6623597,126.02,125.99,8.09582993]
[1767320184307,0.6623597,126.02,125.99,7.93713127]
[1767320194909,0.66782658,126.01,125.99,7.93713127]
[1767320197019,0.66782658,126.01,125.98,14.65869866]
[1767320197200,61.122441,126.05,125.95,108.83083238]
[1767320197201,0.66782658,125.98,125.95,7.9392893]
[1767320197518,0.62813775,125.98,125.95,7.9392893]
[1767320198114,0.62813775,125.98,125.95,8.13767679]
[1767320198310,3.2669205,126.0,125.96,0.19838749]
[1767320198615,3.2669205,125.99,125.96,0.19838749]
[1767320199119,3.22723482,125.99,125.95,7.9392893]
[1767320199419,3.8950614,125.99,125.96,0.19838749]
[1767320200429,0.66782658,125.98,125.95,7.9392893]
[1767320200725,0.66782658,125.98,125.95,8.13767679]
[1767320201389,0.66782658,125.98,125.96,0.19838749]
[1767320201920,0.66782658,125.98,125.95,7.9392893]
[1767320202105,0.66782658,125.98,125.95,8.13767679]
[1767320204413,0.66782658,125.98,125.96,8.13736975]
[1767320206307,3.2669205,126.0,125.96,8.13736975]
[1767320206516,0.66782658,125.99,125.96,8.13736975]
[1767320207423,0.66782658,125.99,125.96,7.63736975]
[1767320209229,0.66782658,125.99,125.96,10.90429025]
[1767320209415,0.66782658,126.02,125.98,3.2669205]
[1767320210808,0.66782658,126.02,125.98,11.20459292]
[1767320212512,0.66782658,126.02,125.98,10.031042]
[1767320212934,2.09336958,126.02,125.98,7.93767242]
[1767320213133,0.66780398,126.01,125.98,7.93767242]
[1767320213936,0.6976023,126.0,125.98,7.93767242]
[1767320215449,0.6976023,126.0,125.97,22.4382948]
[1767320218136,0.6976023,126.0,125.97,24.53166438]
[1767320218629,2.79097188,126.02,125.97,24.53166438]
[1767320218816,0.6976023,126.02,125.98,2.09336958]
[1767320219824,0.6976023,126.02,125.99,7.93713786]
[1767320222548,2.09336958,126.02,125.98,7.93765571]
[1767320222763,0.6976023,126.01,125.98,7.93765571]
[1767320223050,0.6976023,125.99,125.96,22.43877956]
[1767320224541,0.6976023,125.99,125.97,7.9382642]
[1767320224840,0.6976023,126.02,125.97,7.9382642]
[1767320225149,0.6976023,126.01,125.97,10.03163378]
[1767320227946,0.6976023,126.01,125.97,7.9382642]
[1767320228122,0.6976023,126.01,125.97,10.03163378]
[1767320228845,0.6976023,126.04,125.99,2.09336958]
[1767320229046,0.6976023,126.04,126.0,2.09336958]
[1767320229344,0.6976023,126.04,126.0,16.59336958]
[1767320230126,0.6976023,126.04,126.01,10.02924768]
[1767320231444,0.6976023,126.04,126.01,24.52924768]
[1767320233225,2.09336958,126.04,126.0,7.93626959]
[1767320233537,0.6976023,126.03,126.0,7.93626959]
[1767320234843,0.6976023,126.03,126.0,10.02963917]
[1767320236147,0.6976023,126.03,126.0,7.93626959]
[1767320237049,0.6976023,126.03,125.97,7.93159795]
[1767320237349,0.6976023,126.02,125.98,24.53065274]
[1767320238050,0.6976023,126.02,125.98,22.43728316]
[1767320239350,0.6976023,126.01,125.98,22.43728316]
[1767320252557,0.66909781,125.99,125.97,7.93794524]
[1767320252740,0.66909781,125.99,125.97,7.21294524]
[1767320253342,0.66909781,125.99,125.96,34.34734689]
[1767320253343,0.66909781,125.99,125.96,22.43880571]
[1767320264474,2.09336958,125.99,125.96,22.43880571]
[1767320264667,2.76246739,125.99,125.96,23.10618598]
[1767320267256,2.09336958,125.99,125.96,23.10618598]
[1767320267458,0.66909781,125.98,125.96,23.10618598]
[1767320267670,0.66909781,125.98,125.96,22.43880571]
[1767320277484,0.66909781,125.98,125.94,28.67183069]
[1767320277674,0.66909781,125.98,125.95,7.93964872]
[1767320278776,0.66909781,125.98,125.95,8.62157488]
[1767320284494,1.66409781,125.98,125.95,8.62157488]
[1767320290699,0.995,125.98,125.95,8.62157488]
[1767320290994,1.68536051,125.98,125.95,8.62157488]
[1767320294598,0.995,125.98,125.96,0.68192616]
[1767320297200,0.995,125.98,125.96,8.62074802]
[1767320297713,1.68536051,125.98,125.96,8.62074802]
[1767320299996,1.68536051,125.98,125.96,7.93882186]
[1767320301490,1.68536051,125.98,125.96,8.62074802]
[1767320301706,1.68536051,125.98,125.96,7.93882186]
[1767320302736,1.68536051,125.98,125.96,8.62074802]
[1767320302882,0.69036051,125.97,125.95,7.93943629]
[1767320303496,0.69036051,125.97,125.95,8.63333177]
[1767320303906,0.995,125.98,125.96,0.69389548]
[1767320305212,0.995,125.98,125.96,8.6327196]
[1767320306008,0.67161011,126.01,125.97,17.77254253]
[1767320306204,11.25169613,126.0,125.97,17.77254253]
[1767320306385,0.67161011,126.01,125.97,17.77254253]
[1767320307106,0.67161011,126.01,125.98,7.93776789]
[1767320307909,0.67161011,126.01,125.98,11.21031042]
[1767320310212,0.67161011,126.01,125.99,11.20955513]
[1767320320722,0.67161011,126.01,125.98,11.21031042]
[1767320321930,0.67161011,126.01,125.98,7.93776789]
[1767320322113,0.67161011,126.01,125.98,11.21031042]
[1767320326535,0.67161011,126.01,125.98,7.93776789]
[1767320326728,0.67161011,126.01,125.98,11.21031042]
[1767320327540,0.67161011,125.99,125.96,7.93858872]
[1767320328514,0.67161011,126.01,125.97,11.21087069]
[1767320328919,0.67161011,126.02,125.97,7.93832816]
[1767320329135,0.67161011,126.0,125.97,7.93832816]
[1767320330540,3.27254253,126.0,125.97,7.93832816]
[1767320330722,0.67161011,125.99,125.96,11.21131658]
[1767320331032,0.67161011,125.99,125.96,7.93877405]
[1767320331616,0.67161011,125.99,125.96,11.21131658]
[1767320333141,0.67161011,125.99,125.96,7.93877405]
[1767320333443,0.67161011,125.99,125.95,25.71208991]
[1767320334119,0.67161011,125.99,125.95,22.43954738]
[1767320338361,0.67161011,125.99,125.95,24.53389695]
[1767320341957,0.68592281,126.01,125.97,7.93839803]
[1767320342855,0.68592281,126.0,125.97,7.93839803]
[1767320351068,0.68592281,126.0,125.97,10.0327476]
[1767320351534,0.68592281,126.0,125.97,7.93839803]
[1767320351735,0.68592281,126.0,125.97,10.0327476]
[1767320352780,0.68592281,126.0,125.97,7.93839803]
[1767320353266,0.68592281,126.0,125.97,10.0327476]
[1767320356079,0.68592281,126.0,125.97,7.93839803]
[1767320358565,2.78027238,126.02,125.97,29.87874267]
[1767320358767,0.68592281,126.02,125.98,16.59434957]
[1767320359352,0.68592281,126.02,125.98,14.5]
[1767320359976,0.68592281,126.02,125.98,22.43725786]
[1767320360473,2.09434957,126.02,125.98,22.43725786]
[1767320360674,0.68592281,126.01,125.98,22.43725786]
[1767320365353,0.69084996,126.05,126.0,2.09434957]
[1767320365554,0.69084996,126.05,126.03,2.09434957]
[1767320365748,0.69084996,126.05,126.01,14.5]
[1767320365954,0.69084996,126.05,126.01,16.59434957]
[1767320366474,0.69084996,126.05,126.02,2.09434957]
[1767320366776,0.69084996,126.05,126.02,10.02915811]
[1767320369779,2.09434957,126.08,126.03,2.75681159]
[1767320370159,2.09434957,126.07,126.03,0.66246202]
[1767320371179,7.93037841,126.1,126.04,7.9339892]
[1767320371180,2.09434957,126.08,126.04,7.9339892]
[1767320371379,2.09434957,126.09,126.04,10.02833877]
[1767320371679,0.69084996,126.08,126.05,0.66246202]
[1767320373382,0.69084996,126.08,126.05,8.59576008]
[1767320377467,0.69084996,126.08,126.05,7.93329806]
[1767320378883,0.69084996,126.07,126.04,8.59624428]
[1767320379482,0.69084996,126.07,126.04,7.93378226]
[1767320379983,0.69084996,126.07,126.04,8.59624428]
[1767320384088,0.69084996,126.07,126.04,7.93378226]
[1767320384266,0.69084996,126.07,126.04,22.43378226]
[1767320389271,0.69084996,126.07,126.04,21.70878226]
[1767320393885,0.69084996,126.07,126.04,22.36862346]
[1767320394402,2.09434957,126.09,126.05,0.6598412]
[1767320394589,0.68286561,126.08,126.05,2.75419077]
[1767320395702,0.68286561,126.08,126.05,10.6872307]
[1767320395998,0.68286561,126.08,126.05,8.59288113]
[1767320396199,0.68286561,126.08,126.05,7.93303993]
[1767320401702,0.68286561,126.08,126.05,8.59288113]
[1767320412522,0.68286561,126.08,126.05,11.86045016]
[1767320412708,0.68286561,126.1,126.06,0.6598412]
[1767320413024,0.68286561,126.09,126.06,0.6598412]
[1767320414018,0.68286561,126.09,126.06,8.59243449]
[1767320416323,0.1,126.11,126.08,3.26756903]
[1767320416618,0.1,126.11,126.09,0.6598412]
[1767320417400,0.1,126.11,126.09,3.26756903]
[1767320417601,0.1,126.11,126.1,0.6598412]
[1767320420024,1e-08,126.11,126.1,8.59005531]
[1767320420329,1e-08,126.11,126.1,0.6598412]
[1767320421232,1e-08,126.11,126.1,8.59005531]
[1767320421412,1e-08,126.11,126.1,11.85762434]
[1767320422622,1e-08,126.12,126.11,0.6598412]
[1767320423512,1e-08,126.12,126.11,8.58942648]
[1767320423725,1e-08,126.12,126.11,8.55942648]
[1767320427815,0.7714428,126.14,126.11,7.92958528]
[1767320428016,0.1,126.14,126.12,3.97159208]
[1767320428218,0.1,126.14,126.13,0.70402305]
[1767320428523,0.1,126.14,126.13,0.67402305]
[1767320428917,0.1,126.14,126.12,3.26756903]
[1767320429126,1e-08,126.14,126.12,3.26756903]
[1767320429712,1e-08,126.14,126.13,11.19589694]
[1767320429929,0.1,126.15,126.13,7.92832791]
[1767320430113,0.1,126.15,126.13,11.19589694]
[1767320430432,0.1,126.15,126.13,8.63235096]
[1767320431029,0.1,126.15,126.13,8.6025525]
[1767320431222,0.1,126.15,126.13,11.87012153]
[1767320431936,0.1,126.15,126.14,0.70402305]
[1767320435518,0.7714428,126.16,126.14,8.63172243]
[1767320436743,0.1,126.16,126.14,8.63172243]
[1767320437041,1e-08,126.16,126.15,0.70402305]
[1767320437550,1e-08,126.16,126.15,8.63109399]
[1767320438424,1e-08,126.16,126.15,11.89866302]
[1767320438632,1e-08,126.16,126.15,8.63109399]
[1767320438943,0.6714428,126.15,126.13,7.92805275]
[1767320443649,0.6714428,126.15,126.12,7.92874177]
[1767320443859,0.6714428,126.12,126.07,0.70402305]
[1767320444065,0.6714428,126.09,126.07,7.93163302]
[1767320446257,3.93901183,126.09,126.07,7.93163302]
[1767320446957,0.6714428,126.09,126.07,7.93163302]
[1767320448357,0.6714428,126.09,126.07,8.63565607]
[1767320449254,0.6714428,126.09,126.06,8.63675349]
[1767320450666,0.6714428,126.09,126.06,7.93273044]
[1767320450841,0.6714428,126.09,126.07,0.70402305]
[1767320451758,3.26756903,126.1,126.07,0.70402305]
[1767320451941,3.93901183,126.1,126.07,0.70402305]
[1767320456263,3.26756903,126.1,126.07,0.70402305]
[1767320456450,0.71689416,126.09,126.07,0.70402305]
[1767320456645,0.71689416,126.09,126.06,8.59192038]
[1767320456855,0.71689416,126.09,126.07,0.65918994]
[1767320458345,0.71689416,126.09,126.06,8.59192038]
[1767320460160,2.09091078,126.08,126.05,8.59209407]
[1767320460384,2.80780494,126.08,126.05,23.07209407]
[1767320460870,0.71689416,126.08,126.05,23.07209407]
[1767320463678,0.71689416,126.08,126.06,8.59185893]
[1767320465698,0.71689416,126.08,126.06,0.65918994]
[1767320466182,0.71689416,126.06,126.03,8.59340295]
[1767320467558,0.71689416,126.06,126.04,8.59311481]
[1767320468680,0.71689416,126.06,126.04,7.93392487]
[1767320470382,0.71689416,126.06,126.04,8.59311481]
[1767320470681,0.71689416,126.09,126.04,8.59311481]